Workbook

Sheet Ramada Houma
E1: Proforma Cash Flows
E2: Venence Inn | X2: Loan Assumptions
E4: Income Statement | X4: Loan Amount | Y4: 2400000
X5: Interest Rate | Y5: 0.085
A6: USE_C | B6: USE_M | C6: USE_H | F6: Year 1 | G6: PSF | I6: Year 2 | J6: PSF | L6: Year 3 | M6: PSF | O6: Year 4 | P6: PSF | R6: Year 5 | S6: PSF | X6: Amortization | Y6: 300
C7: N | E7: Occupancy | H7: 0.6560090383 | K7: 0.6419149838 | N7: 0.7331699623 | Q7: 0.7773478322 | T7: 0
A8: N | B8: N | X8: Annual PMT | Y8: =Y9*12 -> 231905.4
A9: N | B9: N | E9: Number of Rooms | F9: 74 | I9: 74 | L9: 74 | O9: =F9 -> 74 | R9: =F9 -> 74 | X9: Monthly PMT | Y9: =PMT(Y5/12,Y6,-Y4) -> 19325.45
A10: N | B10: N | E10: Days in Period | F10: 365 | I10: 365 | L10: 365 | O10: 365 | R10: 365
A11: N | B11: N | E11: # of Available Rooms | F11: =F9*F10 -> 27010 | I11: =I9*I10 -> 27010 | L11: =L9*L10 -> 27010 | O11: =O9*O10 -> 27010 | R11: =R9*R10 -> 27010
A12: N | B12: N | E12: # of Occupied Rooms | F12: =F11*0.6 -> 16206 | I12: =F12*1.03 -> 16692.18 | L12: =I12*1.03 -> 17192.9454 | O12: =L12*1.03 -> 17708.73376 | R12: =O12*1.03 -> 18239.99577 | X12: Equity | Y12: 800000
A13: N | B13: N | X13: Loan
A14: N | B14: N | E14: Occupancy | F14: 0.65 | I14: 0.65 | L14: 0.65 | O14: 0.65 | R14: 0.65
A15: N | B15: N | E15: bv 878+++ | F15: 74 | I15: 78 | L15: 81 | O15: 84 | R15: 86 | X15: Price | Y15: 3200000
A16: N | B16: N | E16: RevPAR | F16: =F15*F14 -> 48.1 | I16: =I15*I14 -> 50.7 | L16: =L15*L14 -> 52.65 | O16: =O15*O14 -> 54.6 | R16: =R15*R14 -> 55.9
A17: N | B17: N | X17: Cost per Unit | Y17: 43200
A18: N | B18: N | E18: Departmental Revenues
A19: N | C19: N | E19: Gross Potential RentN | G19: 0 | H19: 0 | J19: 0 | K19: 0 | M19: 0 | N19: 0 | P19: 0 | Q19: 0 | S19: 0 | T19: 0
A20: N | C20: N | E20: Less: Mark-to-MarketN | G20: 0 | H20: 0 | J20: 0 | K20: 0 | M20: 0 | N20: 0 | P20: 0 | Q20: 0 | S20: 0 | T20: 0
A21: N | B21: N | E21: Rooms | F21: =(F9*F14)*(F15*365) -> 1299181 | G21: 21359.2268 | H21: =F21/F37 -> 1 | I21: =(I9*I14)*(I15*365) -> 1369407 | J21: 26448.39175 | K21: =I21/$I$37 -> 1 | L21: =(L9*L14)*(L15*365) -> 1422076.5 | M21: 28843.12371 | N21: =L21/$L$37 -> 1 | O21: =(O9*O14)*(O15*365) -> 1474746 | P21: 29793.59794 | Q21: =O21/$O$37 -> 1 | R21: =(R9*R14)*(R15*365) -> 1509859 | S21: 29793.59794 | T21: =R21/$R$37 -> 1
A22: N | B22: N | E22: Food & Beverage | G22: 0 | H22: =F22/F37 -> 0 | J22: 0 | K22: 0 | M22: 0 | N22: 0 | P22: 0 | Q22: =O22/$O$37 -> 0 | S22: 0 | T22: =R22/$R$37 -> 0
A23: N | B23: N | E23: Telephone | G23: 0 | H23: =F23/F37 -> 0 | J23: 0 | K23: 0 | M23: 0 | N23: 0 | P23: 0 | Q23: 0 | S23: 0 | T23: 0
A24: N | B24: N | E24: Parking, Spa & Laundry | G24: 0 | H24: =F24/F37 -> 0 | J24: 0 | K24: 0 | M24: 0 | N24: 0 | P24: 0 | Q24: 0 | S24: 0 | T24: 0
A25: N | B25: N | E25: Other | G25: 405.7938144 | J25: 278.7010309 | M25: 351.5154639 | P25: 357.4948454 | S25: 357.4948454
A26: N | B26: N | E26: Convention Center | G26: 0 | H26: =F26/F37 -> 0 | J26: 0 | K26: 0 | M26: 0 | N26: 0 | P26: 0 | Q26: =O26/O37 -> 0 | S26: 0 | T26: 0
B27: N | C27: N | E27: Base RentN | G27: 0 | H27: 0 | J27: 0 | K27: 0 | M27: 0 | N27: 0 | P27: 0 | Q27: 0 | R27: 0 | S27: 0 | T27: 0
B28: N | C28: N | E28: Plus: Rent Steps / AveragesN | G28: 0 | H28: 0 | J28: 0 | K28: 0 | M28: 0 | N28: 0 | P28: 0 | Q28: 0 | R28: 0 | S28: 0 | T28: 0
B29: N | C29: N | E29: Plus: % RentN | G29: 0 | H29: 0 | J29: 0 | K29: 0 | M29: 0 | N29: 0 | P29: 0 | Q29: 0 | S29: 0 | T29: 0
B30: N | C30: N | E30: Less: ConcessionsN | G30: 0 | H30: 0 | J30: 0 | K30: 0 | M30: 0 | N30: 0 | P30: 0 | Q30: 0 | S30: 0 | T30: 0
B31: N | C31: N | E31: Less: Mark-to-MarketN | G31: 0 | H31: 0 | J31: 0 | K31: 0 | M31: 0 | N31: 0 | P31: 0 | Q31: 0 | R31: 0 | S31: 0 | T31: 0
A32: N | C32: N | E32: Less: Concessions | G32: 0 | H32: 0 | J32: 0 | K32: 0 | M32: 0 | N32: 0 | P32: 0 | Q32: 0 | S32: 0 | T32: 0
A33: N | C33: N | E33: Less: VacancyN | G33: 0 | H33: 0 | J33: 0 | K33: 0 | M33: 0 | N33: 0 | P33: 0 | Q33: 0 | S33: 0 | T33: 0
A34: N | C34: N | E34: Less: Uncollectable RentsN | G34: 0 | H34: 0 | J34: 0 | K34: 0 | M34: 0 | N34: 0 | P34: 0 | Q34: 0 | S34: 0 | T34: 0
A35: N | C35: N | E35: Less: Model UnitsN | G35: 0 | H35: 0 | J35: 0 | K35: 0 | M35: 0 | N35: 0 | P35: 0 | Q35: 0 | S35: 0 | T35: 0
A36: N | C36: N | E36: Less: Employee UnitsN | G36: 0 | H36: 0 | J36: 0 | K36: 0 | M36: 0 | N36: 0 | P36: 0 | Q36: 0 | S36: 0 | T36: 0
A37: N | B37: N | E37: Total Departmental Revenues | F37: =SUM(F21:F26) -> 1299181 | G37: 21765.02062 | H37: =F37/F37 -> 1 | I37: =SUM(I21:I26) -> 1369407 | J37: 26727.09278 | K37: =I37/I37 -> 1 | L37: =SUM(L21:L26) -> 1422076.5 | M37: 29194.63918 | N37: =L37/L37 -> 1 | O37: =SUM(O21:O26) -> 1474746 | P37: 30151.09278 | Q37: =O37/O37 -> 1 | R37: =SUM(R21:R26) -> 1509859 | S37: 30151.09278 | T37: =R37/R37 -> 1
A38: N | B38: N
A39: N | B39: N | E39: Departmental Expenses
A40: N | B40: N | C40: N | E40: Net Base RentN | F40: 2111207 | G40: 21765.02062 | H40: 0.6695629588 | I40: 2592528 | J40: 26727.09278 | K40: 0.6811552584 | L40: 2831880 | M40: 29194.63918 | N40: 0.6945378123 | O40: 2924656 | P40: 30151.09278 | Q40: 0.6907944882 | R40: 2924656 | S40: 30151.09278 | T40: 0.6907944882
B41: N | C41: N | E41: Reimbursement: TaxN | G41: 0 | H41: 0 | J41: 0 | K41: 0 | M41: 0 | N41: 0 | P41: 0 | Q41: 0 | S41: 0 | T41: 0
B42: N | C42: N | E42: Reimbursement: CAMN | G42: 0 | H42: 0 | J42: 0 | K42: 0 | M42: 0 | N42: 0 | P42: 0 | Q42: 0 | S42: 0 | T42: 0
B43: N | C43: N | E43: Reimbursement: InsuranceN | G43: 0 | H43: 0 | J43: 0 | K43: 0 | M43: 0 | N43: 0 | P43: 0 | Q43: 0 | S43: 0 | T43: 0
A44: N | B44: N | E44: Rooms | F44: =F37*H44 -> 246844.39 | G44: 5166.752577 | H44: 0.19 | I44: =K44*I37 -> 260187.33 | J44: 5777.329897 | K44: 0.19 | L44: =N44*L37 -> 270194.535 | M44: 6342.752577 | N44: 0.19 | O44: =Q44*O37 -> 280201.74 | P44: 6597.721649 | Q44: 0.19 | R44: =T44*R37 -> 286873.21 | S44: 6597.721649 | T44: 0.19
A45: N | B45: N | E45: Food & Beverage | F45: 0 | G45: 0 | J45: 0 | M45: 0 | P45: 0 | S45: 0
A46: N | B46: N | E46: Telephone | G46: 0 | J46: 0 | M46: 0 | P46: 0 | S46: 0
A47: N | B47: N | E47: Parking, Spa & Laundry | G47: 0 | J47: 0 | M47: 0 | P47: 0 | S47: 0
A48: N | B48: N | E48: Other | F48: =F25*H48 -> 0 | G48: 186.4639175 | I48: =K48*I25 -> 0 | J48: 176.8865979 | L48: =N48*L25 -> 0 | M48: 261.5876289 | O48: =Q48*O25 -> 0 | P48: 296.0309278 | R48: =T48*R25 -> 0 | S48: 296.0309278
A49: N | B49: N | E49: Convention Center | G49: 0 | J49: 0 | M49: 0 | P49: 0 | S49: 0
B50: N | C50: N | E50: Reimbursement: OtherN | G50: 0 | H50: 0 | J50: 0 | K50: 0 | M50: 0 | N50: 0 | P50: 0 | Q50: =O50/O27 ->  | S50: 0 | T50: 0
A51: N | B51: N | E51: Total Departmental Expenses | F51: =SUM(F44:F49) -> 246844.39 | G51: 5353.216495 | H51: =F51/F37 -> 0.19 | I51: =SUM(I44:I49) -> 260187.33 | J51: 5954.216495 | K51: =I51/I37 -> 0.19 | L51: =SUM(L44:L49) -> 270194.535 | M51: 6604.340206 | N51: =L51/L37 -> 0.19 | O51: =SUM(O44:O49) -> 280201.74 | P51: 6893.752577 | Q51: =O51/O37 -> 0.19 | R51: =SUM(R44:R49) -> 286873.21 | S51: 6893.752577 | T51: =R51/R37 -> 0.19
A52: N | B52: N
A53: N | B53: N | E53: Gross Operating income | F53: =F37-F51 -> 1052336.61 | G53: 16411.80412 | H53: =F53/F37 -> 0.81 | I53: =I37-I51 -> 1109219.67 | J53: 20772.87629 | K53: =I53/I37 -> 0.81 | L53: =L37-L51 -> 1151881.965 | M53: 22590.29897 | N53: =L53/L37 -> 0.81 | O53: =O37-O51 -> 1194544.26 | P53: 23257.34021 | Q53: =O53/O37 -> 0.81 | R53: =R37-R51 -> 1222985.79 | S53: 23257.34021 | T53: =R53/R37 -> 0.81
A54: N | B54: N
A55: N | B55: N | E55: Undistributed Operating Expenses
B56: N | C56: N | E56: Total Rental IncomeN | F56: 2630469 | G56: 27118.23711 | H56: 0.8342453424 | I56: 3170087 | J56: 32681.30928 | K56: 0.832901874 | L56: 3472501 | M56: 35798.97938 | N56: 0.8516544655 | O56: 3593350 | P56: 37044.84536 | Q56: 0.848737894 | R56: 3593350 | S56: 37044.84536 | T56: 0.848737894
B57: N | C57: N | E57: Plus: Other IncomeN | G57: 0 | H57: 0 | J57: 0 | K57: 0 | M57: 0 | N57: 0 | P57: 0 | Q57: 0 | S57: 0 | T57: 0
B58: N | C58: N | E58: Less: Vacancy LossN | G58: 0 | H58: 0 | J58: 0 | K58: 0 | M58: 0 | N58: 0 | P58: 0 | Q58: 0 | R58: 0 | S58: 0 | T58: 0
B59: N | C59: N | E59: Less: Collection LossN | G59: 0 | H59: 0 | J59: 0 | K59: 0 | M59: 0 | N59: 0 | P59: 0 | Q59: 0 | S59: 0 | T59: 0
A60: N | B60: N | E60: Admin & General | F60: =H60*F37 -> 90942.67 | G60: 2156.917526 | H60: 0.07 | I60: =K60*I37 -> 95858.49 | J60: 2468.443299 | K60: 0.07 | L60: =N60*L37 -> 99545.355 | M60: 2090.814433 | N60: 0.07 | O60: =Q60*O37 -> 103232.22 | P60: 2209.020619 | Q60: 0.07 | R60: =T60*R37 -> 105690.13 | S60: 2209.020619 | T60: 0.07
A61: N | B61: N | E61: Sales & Marketing | F61: =H61*F37 -> 25983.62 | G61: 950.0515464 | H61: 0.02 | I61: =K61*I37 -> 34235.175 | J61: 1395.092784 | K61: 0.025 | L61: =N61*L37 -> 35551.9125 | M61: 1599.072165 | N61: 0.025 | O61: =Q61*O37 -> 44242.38 | P61: 1768.845361 | Q61: 0.03 | R61: =T61*R37 -> 60394.36 | S61: 1768.845361 | T61: 0.04
A62: N | B62: N | E62: Utilities | F62: =H62*F37 -> 90942.67 | G62: 1553.896907 | H62: 0.07 | I62: =K62*I37 -> 95858.49 | J62: 1536.608247 | K62: 0.07 | L62: =N62*L37 -> 99545.355 | M62: 1556.680412 | N62: 0.07 | O62: =Q62*O37 -> 103232.22 | P62: 1592.041237 | Q62: 0.07 | R62: =T62*R37 -> 105690.13 | S62: 1592.041237 | T62: 0.07
A63: N | B63: N | E63: Property Op. & Maintenance | F63: =H63*F37 -> 58463.145 | G63: 727.2061856 | H63: 0.045 | I63: =K63*I37 -> 68470.35 | J63: 1156.43299 | K63: 0.05 | L63: =N63*L37 -> 71103.825 | M63: 989.0824742 | N63: 0.05 | O63: =Q63*O37 -> 73737.3 | P63: 1032.226804 | Q63: 0.05 | R63: =T63*R37 -> 75492.95 | S63: 1032.226804 | T63: 0.05
A64: N | B64: N | E64: Other | F64: 0 | G64: 0 | H64: =F64/$F$37 -> 0 | J64: 0 | K64: =I64/$I$37 -> 0 | M64: 0 | N64: =L64/$L$37 -> 0 | P64: 0 | Q64: =O64/$O$37 -> 0 | S64: 0 | T64: =R64/R37 -> 0
A65: N | C65: N | E65: Utility IncomeN | G65: 0 | H65: 0 | J65: 0 | K65: 0 | M65: 0 | N65: 0 | P65: 0 | Q65: 0 | S65: 0 | T65: 0
A66: N | C66: N | E66: Laundry IncomeN | G66: 0 | H66: 0 | J66: 0 | K66: 0 | M66: 0 | N66: 0 | P66: 0 | Q66: 0 | S66: 0 | T66: 0
A67: N | C67: N | E67: Parking IncomeN | G67: 0 | H67: 0 | J67: 0 | K67: 0 | M67: 0 | N67: 0 | P67: 0 | Q67: 0 | S67: 0 | T67: 0
A68: N | C68: N | E68: Storage IncomeN | G68: 0 | H68: 0 | J68: 0 | K68: 0 | M68: 0 | N68: 0 | P68: 0 | Q68: 0 | S68: 0 | T68: 0
A69: N | C69: N | E69: Application FeesN | G69: 0 | H69: 0 | J69: 0 | K69: 0 | M69: 0 | N69: 0 | P69: 0 | Q69: 0 | S69: 0 | T69: 0
A70: N | C70: N | E70: Commercial IncomeN | G70: 0 | H70: 0 | J70: 0 | K70: 0 | M70: 0 | N70: 0 | P70: 0 | Q70: 0 | S70: 0 | T70: 0
C71: N | E71: Other IncomeN | G71: 0 | H71: 0 | J71: 0 | K71: 0 | M71: 0 | N71: 0 | P71: 0 | Q71: 0 | S71: 0 | T71: 0
A72: N | B72: N | E72: Total Undist. Op. Expenses | F72: =SUM(F60:F64) -> 266332.105 | G72: 5388.072165 | H72: =F72/F37 -> 0.205 | I72: =SUM(I60:I64) -> 294422.505 | J72: 6556.57732 | K72: =I72/I37 -> 0.215 | L72: =SUM(L60:L64) -> 305746.4475 | M72: 6235.649485 | N72: =L72/L37 -> 0.215 | O72: =SUM(O60:O64) -> 324444.12 | P72: 6602.134021 | Q72: =O72/O37 -> 0.22 | R72: =SUM(R60:R64) -> 347267.57 | S72: 6602.134021 | T72: =R72/R37 -> 0.23
A73: N | B73: N
A74: N | B74: N | E74: Income Before Fixed Charges | F74: =F53-F72 -> 786004.505 | G74: 11023.73196 | H74: =F74/F37 -> 0.605 | I74: =I53-I72 -> 814797.165 | J74: 14216.29897 | K74: =I74/I37 -> 0.595 | L74: =L53-L72 -> 846135.5175 | M74: 16354.64948 | N74: =L74/L37 -> 0.595 | O74: =O53-O72 -> 870100.14 | P74: 16655.20619 | Q74: =O74/O37 -> 0.59 | R74: =R53-R72 -> 875718.22 | S74: 16655.20619 | T74: =R74/R37 -> 0.58
A75: N | B75: N
A76: N | B76: N | E76: Fixed Charges
C77: N | E77: Effective Gross IncomeN | F77: 3153112 | G77: 32506.30928 | H77: 1 | I77: 3806075 | J77: 39237.8866 | K77: 1 | L77: 4077359 | M77: 42034.62887 | N77: 1 | O77: 4233757 | P77: 43646.97938 | Q77: 1 | R77: 4233757 | S77: 43646.97938 | T77: 1 | U77: Recov?
C78: N | E78: Management FeesN | G78: 0 | H78: 0 | J78: 0 | K78: 0 | M78: 0 | N78: 0 | P78: 0 | Q78: 0 | R78: 169350.28 | S78: 1745.879175 | T78: 0.04
C79: N | E79: Real Estate TaxesN | G79: 0 | H79: 0 | J79: 0 | K79: 0 | M79: 0 | N79: 0 | P79: 0 | Q79: 0 | S79: 0 | T79: 0
C80: N | E80: Property InsuranceN | G80: 0 | H80: 0 | J80: 0 | K80: 0 | M80: 0 | N80: 0 | P80: 0 | Q80: 0 | S80: 0 | T80: 0
A81: N | B81: N | E81: Real Estate Taxes | F81: 25000 | G81: 558.9793814 | I81: 27000 | J81: 339.6185567 | L81: 29000 | M81: 448.4020619 | O81: 31000 | P81: 448.4020619 | R81: 33000 | S81: 453.6082474
A82: N | B82: N | E82: Insurance | F82: 60000 | G82: 166.9587629 | I82: 64000 | J82: 94.75257732 | L82: 68000 | M82: 271.7731959 | O82: 72000 | P82: 327.4845361 | R82: 76000 | S82: 427.814433
A83: N | B83: N | E83: franchise/reservation fees | F83: =H83*F37 -> 64959.05 | G83: 727.7525773 | H83: 0.05 | I83: =K83*I37 -> 68470.35 | J83: 1043.298969 | K83: 0.05 | L83: =N83*L37 -> 71103.825 | M83: 865.9793814 | N83: 0.05 | O83: =Q83*O37 -> 73737.3 | P83: 797.7113402 | Q83: 0.05 | R83: =T83*R37 -> 75492.95 | S83: 1206.043711 | T83: 0.05
A84: N | B84: N | E84: Other Exp. | G84: 63.92783505 | H84: =F84/F37 -> 0 | J84: 59.79381443 | K84: =I84/$I$37 -> 0 | M84: 37.11340206 | N84: =L84/$L$37 -> 0 | P84: 37.11340206 | Q84: =O84/$O$37 -> 0 | R84: 0 | S84: 0 | T84: 0
A85: N | C85: N | E85: UtilitiesN | G85: 0 | H85: 0 | J85: 0 | K85: 0 | M85: 0 | N85: 0 | P85: 0 | Q85: 0 | S85: 0 | T85: 0
A86: N | C86: N | E86: Repairs and MaintenanceN | G86: 0 | H86: 0 | J86: 0 | K86: 0 | M86: 0 | N86: 0 | P86: 0 | Q86: 0 | S86: 0 | T86: 0
A87: N | C87: N | E87: Payroll & BenefitsN | G87: 0 | H87: 0 | J87: 0 | K87: 0 | M87: 0 | N87: 0 | P87: 0 | Q87: 0 | S87: 0 | T87: 0
A88: N | C88: N | E88: General and AdministrativeN | G88: 0 | H88: 0 | J88: 0 | K88: 0 | M88: 0 | N88: 0 | P88: 0 | Q88: 0 | S88: 0 | T88: 0
A89: N | C89: N | E89: AdvertisingN | G89: 0 | H89: 0 | J89: 0 | K89: 0 | M89: 0 | N89: 0 | P89: 0 | Q89: 0 | S89: 0 | T89: 0
A90: N | C90: N | E90: Legal and ProfessionalN | G90: 0 | H90: 0 | J90: 0 | K90: 0 | M90: 0 | N90: 0 | P90: 0 | Q90: 0 | S90: 0 | T90: 0
A91: N | C91: N | E91: SecurityN | G91: 0 | H91: 0 | J91: 0 | K91: 0 | M91: 0 | N91: 0 | P91: 0 | Q91: 0 | S91: 0 | T91: 0
B92: N | C92: N | E92: CAMN | G92: 0 | H92: 0 | J92: 0 | K92: 0 | M92: 0 | N92: 0 | P92: 0 | Q92: 0 | S92: 0 | T92: 0
B93: N | C93: N | E93: Payroll & BenefitsN | G93: 0 | H93: 0 | J93: 0 | K93: 0 | M93: 0 | N93: 0 | P93: 0 | Q93: 0 | S93: 0 | T93: 0
B94: N | C94: N | E94: UtilitiesN | G94: 0 | H94: 0 | J94: 0 | K94: 0 | M94: 0 | N94: 0 | P94: 0 | Q94: 0 | S94: 0 | T94: 0
B95: N | C95: N | E95: Repairs and MaintenanceN | G95: 0 | H95: 0 | J95: 0 | K95: 0 | M95: 0 | N95: 0 | P95: 0 | Q95: 0 | S95: 0 | T95: 0
B96: N | C96: N | E96: General and AdministrativeN | G96: 0 | H96: 0 | J96: 0 | K96: 0 | M96: 0 | N96: 0 | P96: 0 | Q96: 0 | S96: 0 | T96: 0
B97: N | C97: N | E97: SecurityN | G97: 0 | H97: 0 | J97: 0 | K97: 0 | M97: 0 | N97: 0 | P97: 0 | Q97: 0 | S97: 0 | T97: 0
B98: N | C98: N | E98: LandscapingN | G98: 0 | H98: 0 | J98: 0 | K98: 0 | M98: 0 | N98: 0 | P98: 0 | Q98: 0 | S98: 0 | T98: 0
B99: N | C99: N | E99: Non-ReimbursableN | G99: 0 | H99: 0 | J99: 0 | K99: 0 | M99: 0 | N99: 0 | P99: 0 | Q99: 0 | S99: 0 | T99: 0
B100: N | C100: N | E100: Ground RentN | G100: 0 | H100: 0 | J100: 0 | K100: 0 | M100: 0 | N100: 0 | P100: 0 | Q100: 0 | S100: 0 | T100: 0
C101: N | E101: Other | F101: 25459 | G101: 262.4639175 | H101: 0.00807424538 | I101: 38791 | J101: 399.9072165 | K101: 0.01019186432 | L101: 26716 | M101: 275.4226804 | N101: 0.01878661239 | O101: 33432 | P101: 344.6597938 | Q101: 0.02266966651 | R101: 0 | S101: 0 | T101: 0
C102: N | E102: Other Exp. | F102: 6000 | G102: 61.8556701 | H102: 0.001902881978 | I102: 6201 | J102: 63.92783505 | K102: 0.001629237469 | L102: 5800 | M102: 59.79381443 | N102: 0.004078542891 | O102: 3600 | P102: 37.11340206 | Q102: 0.002441098332 | R102: 0 | S102: 0 | T102: 0
A103: N | B103: N | E103: Total Fixed Charges | F103: =SUM(F81:F84) -> 149959.05 | G103: 3439.56701 | H103: =F103/F37 -> 0.1154258337 | I103: =SUM(I81:I84) -> 159470.35 | J103: 3924.030928 | K103: =I103/I37 -> 0.1164521212 | L103: =SUM(L81:L84) -> 168103.825 | M103: 4219.185567 | N103: =L103/L37 -> 0.1182101139 | O103: =SUM(O81:O84) -> 176737.3 | P103: 4292.175258 | Q103: =O103/O37 -> 0.1198425356 | R103: =SUM(R81:R84) -> 184492.95 | S103: 4801.064742 | T103: =R103/R37 -> 0.1221921716
A104: N | B104: N
C105: N | E105: Total ExpensesN | F105: 856281 | G105: 8827.639175 | H105: 0.2715669472 | I105: 1016619 | J105: 10480.60825 | K105: 0.2671043004 | L105: 1014119 | M105: 10454.83505 | N105: 0.2487195756 | O105: 1056748 | P105: 10894.30928 | Q105: 0.2496005321 | R105: 1106110.28 | S105: 11403.19876 | T105: 0.2612597464
E106: NOI | F106: =F74-F103 -> 636045.455 | G106: 7584.164948 | H106: =F106/F37 -> 0.4895741663 | I106: =I74-I103 -> 655326.815 | J106: 10292.26804 | K106: =I106/I37 -> 0.4785478788 | L106: =L74-L103 -> 678031.6925 | M106: 12135.46392 | N106: =L106/L37 -> 0.4767898861 | O106: =O74-O103 -> 693362.84 | P106: 12363.03093 | Q106: =O106/O37 -> 0.4701574644 | R106: =R74-R103 -> 691225.27 | S106: 11854.14144 | T106: =R106/R37 -> 0.4578078284
C107: N | E107: Capital ExpendituresN | G107: 0 | H107: 0 | J107: 0 | K107: 0 | M107: 0 | N107: 0 | P107: 0 | Q107: 0 | R107: 0 | S107: 0 | T107: 0
A108: N | B108: N | E108: FF & E Reserve | F108: =0.02*F37 -> 25983.62 | G108: 0 | H108: 0.03 | I108: =0.02*I37 -> 27388.14 | J108: 0 | K108: 0.03 | L108: =0.02*L37 -> 28441.53 | M108: 0 | N108: 0.03 | O108: =0.02*O37 -> 29494.92 | P108: 0 | Q108: 0.03 | R108: =0.02*R37 -> 30197.18 | S108: 1206.043711 | T108: 0.03
B109: N | C109: N | E109: Tenant ImprovementsN | G109: 0 | H109: 0 | J109: 0 | K109: 0 | M109: 0 | N109: 0 | P109: 0 | Q109: 0 | R109: 0 | S109: 0 | T109: 0
B110: N | C110: N | E110: Leasing CommissionsN | G110: 0 | H110: 0 | J110: 0 | K110: 0 | M110: 0 | N110: 0 | P110: 0 | Q110: 0 | R110: 0 | S110: 0 | T110: 0
E111: Cash Flow | F111: =F106-F108 -> 610061.835 | G111: 7584.164948 | H111: =F111/F37 -> 0.4695741663 | I111: =I106-I108 -> 627938.675 | J111: 10292.26804 | K111: =I111/I37 -> 0.4585478788 | L111: =L106-L108 -> 649590.1625 | M111: 12135.46392 | N111: =L111/L37 -> 0.4567898861 | O111: =O106-O108 -> 663867.92 | P111: 12363.03093 | Q111: =O111/O37 -> 0.4501574644 | R111: =R106-R108 -> 661028.09 | S111: 10648.09773 | T111: =R111/R37 -> 0.4378078284

Sheet Sheet1
